bitfinex/quotes_ETHUSD_20251028
["timestamp","ask_amount","ask_price","bid_price","bid_amount"]
[1761649774226,0.0106,4114.8,4114.7,6.68431083]
[1761649774537,0.0106,4114.8,4114.7,7.70088362]
[1761649775958,0.0106,4114.8,4114.7,3.92088362]
[1761649777236,0.0106,4114.8,4114.7,4.35638095]
[1761649777437,0.0106,4114.8,4114.7,4.38068405]
[1761649779060,0.0106,4114.8,4114.7,4.35638095]
[1761649780060,0.0106,4114.8,4114.7,8.16068405]
[1761649780271,0.0106,4114.8,4114.7,8.13638095]
[1761649781162,0.0106,4114.8,4114.7,8.54188495]
[1761649781533,0.0106,4114.8,4114.7,10.19431758]
[1761649783071,0.0106,4114.8,4114.7,14.44560688]
[1761649791792,0.001,4115.1,4115.0,6.19953365]
[1761649791966,0.001,4115.1,4115.0,8.96158295]
[1761649792163,0.001,4115.1,4115.0,9.53798295]
[1761649792364,0.001,4115.1,4115.0,9.63521204]
[1761649796386,0.0002,4115.1,4115.0,9.63521204]
[1761649802210,0.0002,4115.1,4115.0,9.53798295]
[1761649803513,0.0002,4115.1,4115.0,13.78927225]
[1761649805620,0.0002,4115.1,4115.0,9.53798295]
[1761649806823,0.0002,4115.1,4115.0,8.67687895]
[1761649806986,0.0002,4115.1,4115.0,3.8902]
[1761649807184,0.1204,4115.1,4115.0,3.8902]
[1761649807624,2.5504746,4115.1,4115.0,3.8902]
[1761649807918,0.1204,4115.1,4115.0,3.8902]
[1761649808424,2.5504746,4115.1,4115.0,3.8902]
[1761649809218,0.1204,4115.1,4115.0,3.8902]
[1761649809602,2.5504746,4115.1,4115.0,3.8902]
[1761649811322,0.1204,4115.1,4115.0,3.8902]
[1761649812385,0.1204,4115.1,4115.0,0.1208]
[1761649813215,0.0002,4115.1,4115.0,0.1208]
[1761649813521,0.1204,4115.1,4115.0,0.1208]
[1761649813722,0.0002,4115.1,4115.0,2.81915365]
[1761649813934,0.0002,4115.1,4115.0,2.93995365]
[1761649814819,0.0002,4115.1,4115.0,6.70935365]
[1761649820763,0.0004,4115.2,4115.1,2.4300746]
[1761649821265,0.0004,4115.2,4115.1,6.1994746]
[1761649821565,0.0004,4115.2,4115.1,7.11341743]
[1761649822952,0.0004,4115.2,4115.1,4.68334283]
[1761649823268,0.0004,4115.2,4115.1,3.34401743]
[1761649827790,0.0004,4115.2,4115.1,0.91394283]
[1761649827993,0.1206,4115.2,4115.0,0.1228]
[1761649836703,0.0004,4115.2,4115.0,2.55287956]
[1761649837298,0.0004,4115.2,4115.0,0.1228]
[1761649838199,0.0004,4115.2,4115.1,2.6473746]
[1761649838708,0.0004,4115.2,4115.1,6.8564746]
[1761649838873,0.0004,4115.2,4115.1,7.79741998]
[1761649843401,0.0004,4115.2,4115.1,8.20292398]
[1761649845310,0.0006,4115.3,4115.2,2.43001555]
[1761649845517,0.0006,4115.3,4115.2,2.86971555]
[1761649845714,0.0006,4115.3,4115.2,2.8940157]
[1761649845942,0.0006,4115.3,4115.2,4.21503759]
[1761649847741,0.0006,4115.3,4115.2,4.19073744]
[1761649848244,0.0006,4115.3,4115.2,3.75103744]
[1761649849441,0.0006,4115.3,4115.2,4.19073744]
[1761649850438,0.0006,4115.3,4115.2,7.96013744]
[1761649855161,0.0006,4115.3,4115.2,4.19073744]
[1761649859860,0.0006,4115.3,4115.2,3.75103744]
[1761649860858,0.0006,4115.3,4115.2,4.19073744]
[1761649861159,0.0006,4115.3,4115.2,3.75103744]
[1761649863069,0.0006,4115.3,4115.1,0.002]
[1761649864360,0.0006,4115.3,4115.1,2.43207079]
[1761649864559,0.0006,4115.3,4115.1,0.002]
[1761649864759,0.0006,4115.3,4115.2,2.43001555]
[1761649865939,0.0006,4115.3,4115.2,2.4543157]
[1761649866262,0.0006,4115.3,4115.2,2.9774704]
[1761649867168,0.0006,4115.3,4115.2,0.54745485]
[1761649867346,0.0006,4115.3,4115.1,2.43206233]
[1761649867546,0.1208,4115.3,4115.1,0.002]
[1761649867758,0.1208,4115.3,4115.1,2.43206156]
[1761649868138,0.0006,4115.3,4115.2,6.19941555]
[1761649868338,0.0006,4115.3,4115.2,3.7694]
[1761649868656,0.0006,4115.3,4115.2,6.19941555]
[1761649869965,0.121,4115.5,4115.2,3.7694]
[1761649870165,2.55011944,4115.4,4115.2,3.7694]
[1761649870366,2.55011944,4115.4,4115.3,0.1208]
[1761649870681,2.42991944,4115.4,4115.3,0.1208]
[1761649871176,2.55011944,4115.4,4115.3,0.1208]
[1761649871589,0.1202,4115.4,4115.3,0.1208]
[1761649877603,0.1212,4115.4,4115.3,0.1208]
[1761649877803,0.001,4115.4,4115.3,0.1208]
[1761649878724,0.1212,4115.4,4115.3,0.1208]
[1761649880608,0.001,4115.4,4115.3,0.1208]
[1761649887129,2.55109745,4115.4,4115.3,0.1208]
[1761649887314,6.8031539,4115.4,4115.3,0.1208]
[1761649888005,2.4299565,4115.3,4115.2,3.7694]
[1761649888207,2.5501565,4115.3,4115.2,3.7694]
[1761649891535,2.43001555,4115.2,4115.1,0.002]
[1761649891735,2.55021555,4115.2,4115.1,0.002]
[1761649894257,2.54941555,4115.2,4115.1,0.002]
[1761649895124,8.356672,4115.2,4115.1,0.002]
[1761649895323,4.22541555,4115.2,4115.1,0.002]
[1761649903452,4.22541555,4115.2,4114.7,0.002]
[1761649903453,2.43025177,4114.8,4114.7,0.002]
[1761649903764,11.05456467,4114.8,4114.7,0.002]
[1761649904282,11.15185335,4114.8,4114.7,0.002]
[1761649904581,6.9003969,4114.8,4114.7,0.002]
[1761649904781,8.3347969,4114.8,4114.7,0.002]
[1761649915920,8.23750822,4114.8,4114.7,0.002]
[1761649918819,8.23670822,4114.8,4114.7,0.002]
[1761649929766,8.23670822,4114.8,4114.7,0.4541]
[1761649930836,8.23670822,4114.8,4114.7,0.002]
[1761649932073,8.29030822,4114.8,4114.7,0.002]
[1761649938369,8.29030822,4114.8,4114.7,0.4541]
[1761649939549,8.29030822,4114.8,4114.7,0.002]
[1761649943372,8.28950822,4114.8,4114.7,0.002]
[1761649946990,8.29050822,4114.8,4114.7,0.002]
[1761649947786,9.14417686,4114.8,4114.7,0.002]
[1761649967661,9.14337686,4114.8,4114.7,0.002]
[1761649975142,0.0546,4114.8,4114.7,4.2163]
[1761649975474,0.001,4115.0,4114.7,0.5677]
[1761649975647,0.001,4115.0,4114.8,0.4449]
[1761649975854,0.001,4115.0,4114.9,0.43391]
[1761649976261,0.001,4115.0,4114.9,0.87881]
[1761649976850,0.001,4115.0,4114.9,3.30900271]
[1761649977266,0.001,4115.0,4114.9,7.07840271]
[1761649977441,0.001,4115.0,4114.9,7.19920271]
[1761649978086,0.001,4115.0,4114.9,3.42980271]
[1761649978380,0.001,4115.0,4114.9,3.45410463]
[1761649978682,0.001,4115.0,4114.9,5.6850267]
[1761649979090,0.001,4115.0,4114.9,9.4544267]
[1761649980772,0.001,4115.0,4114.9,9.6976267]
[1761649980947,0.001,4115.0,4114.9,9.4544267]
[1761649984048,0.001,4115.4,4115.3,2.8354605]
[1761649984262,0.001,4115.4,4115.3,10.05625164]
[1761649984456,0.001,4115.4,4115.3,10.80297163]
[1761649984655,0.001,4115.4,4115.3,14.57237163]
[1761649985679,0.001,4115.4,4115.3,14.66957709]
[1761649989162,0.01,4117.8,4115.3,14.66957709]
[1761649989163,2.53572945,4117.8,4115.6,2.83528337]
[1761649989529,2.43852399,4117.8,4115.6,10.2746331]
[1761649989818,2.43852399,4117.8,4115.8,8.1477653]
[1761649989819,2.53572473,4117.8,4115.8,8.1477653]
[1761649989982,2.53572473,4117.8,4115.8,14.5577653]
[1761649989983,0.10720074,4117.8,4115.8,14.5577653]
[1761649990189,1e-08,4116.1,4116.0,2.83504724]
[1761649990426,1e-08,4116.4,4116.3,0.633904]
[1761649990723,1e-08,4116.4,4116.3,15.74748446]
[1761649990880,1e-08,4116.4,4116.3,16.1648908]
[1761649991084,1e-08,4116.4,4116.3,16.26207075]
[1761649991612,1e-08,4116.4,4116.3,15.96755076]
[1761649992181,0.00960001,4116.8,4116.7,2.83463412]
[1761649992417,0.00960001,4116.8,4116.7,8.63038753]
[1761649992582,0.00960001,4116.8,4116.7,9.07208753]
[1761649993479,0.00960001,4116.8,4116.7,9.80095138]
[1761649997035,0.01,4117.8,4117.1,0.405504]
[1761649997248,0.01,4117.8,4117.6,2.42859047]
[1761649998125,0.01,4117.8,4117.5,2.4286399]
[1761649998305,0.01,4117.8,4117.5,0.92752616]
[1761649998504,0.01,4117.8,4117.5,3.35614998]
[1761649998905,0.001,4117.7,4117.6,2.4285831]
[1761649999133,0.001,4117.7,4117.5,3.35616786]
[1761649999341,0.001,4117.7,4117.6,2.42859918]
[1761649999635,0.001,4117.7,4117.5,3.35618342]
[1761650000236,0.001,4117.7,4117.6,2.42859918]
[1761650000435,0.001,4117.7,4117.6,0.1208]
[1761650001836,0.1,4117.7,4117.6,0.1208]
[1761650002134,0.001,4117.7,4117.6,0.1208]
[1761650002902,0.001,4117.7,4117.6,3.86859999]
[1761650003942,0.001,4117.7,4117.6,6.29719917]
[1761650004108,0.001,4117.7,4117.6,7.41278909]
[1761650011122,0.001,4117.7,4117.6,3.86859999]
[1761650011525,2.5285402,4117.7,4117.6,3.74779999]
[1761650014638,2.42861498,4117.6,4116.9,3.74779999]
[1761650014839,2.42878929,4117.3,4116.9,3.74779999]
[1761650015160,6.67512801,4117.4,4116.9,3.74779999]
[1761650015364,0.099,4117.3,4116.9,3.74779999]
[1761650016171,0.099,4117.3,4116.8,0.002]
[1761650016172,6.67529029,4117.1,4117.0,3.74779999]
[1761650016532,6.77429029,4117.1,4117.0,3.74779999]
[1761650016760,6.77349029,4117.1,4117.0,3.74779999]
[1761650020430,2.42895312,4117.0,4116.9,3.74779999]
[1761650020763,2.52795312,4117.0,4116.9,3.74779999]
[1761650021351,2.52795312,4117.0,4116.8,0.002]
[1761650021352,2.42901212,4116.9,4116.8,0.002]
[1761650021530,2.52801212,4116.9,4116.8,0.002]
[1761650021927,4.08321212,4116.9,4116.8,0.002]
[1761650022363,3.98427112,4116.8,4116.3,0.002]
[1761650022588,8.23090333,4116.4,4116.3,0.002]
[1761650023082,8.32990333,4116.4,4116.3,0.002]
[1761650023675,8.42715677,4116.4,4116.3,0.002]
[1761650026147,8.54795677,4116.4,4116.3,0.002]
[1761650034277,8.44895677,4116.4,4116.3,0.002]
[1761650037883,2.42930716,4116.4,4116.3,0.002]
[1761650038081,2.42930716,4116.4,4116.3,0.4444]
[1761650039251,2.42930716,4116.4,4116.3,0.002]
[1761650039986,2.42930716,4116.4,4116.3,0.4444]
[1761650040380,2.42930716,4116.4,4116.3,0.002]
[1761650040587,2.42930716,4116.4,4116.3,0.4444]
[1761650041097,0.5624,4116.7,4116.3,0.4444]
[1761650041300,2.42918913,4116.6,4116.3,0.5652]
[1761650041454,2.42925603,4116.5,4116.3,0.5652]
[1761650041801,4.24639617,4116.7,4116.4,0.4424]
[1761650042087,1.5552,4116.9,4116.4,0.4424]
[1761650042251,2.42917681,4116.7,4116.4,0.4424]
[1761650042663,2.42911453,4116.8,4116.4,0.4424]
[1761650042984,1.5552,4116.9,4116.4,0.4424]
[1761650043170,2.42912789,4116.8,4116.4,0.4424]
[1761650043488,2.42896014,4117.0,4116.8,0.1208]
[1761650043889,2.42901212,4116.9,4116.8,0.5632]
[1761650044556,2.42901212,4116.9,4116.8,0.1208]
[1761650045394,2.42930716,4116.4,4116.3,3.74979999]
[1761650045578,6.67570333,4116.4,4116.3,3.74979999]
[1761650046766,6.67570333,4116.4,4116.3,0.002]
[1761650049921,4.24639617,4116.4,4116.3,0.002]
[1761650050106,6.67570333,4116.4,4116.3,0.002]
[1761650059620,4.24639617,4116.4,4116.3,0.002]
[1761650059920,6.67570333,4116.4,4116.3,0.002]
[1761650064651,8.23090333,4116.4,4116.3,0.002]
[1761650065639,8.23010333,4116.4,4116.3,0.002]
[1761650069742,3.98450716,4116.4,4116.3,0.002]
[1761650070741,4.08350716,4116.4,4116.3,0.002]
[1761650071044,3.98450716,4116.4,4116.3,0.002]
[1761650073648,4.08350716,4116.4,4116.3,0.002]
[1761650082459,3.98450716,4116.4,4116.3,0.002]
[1761650085265,3.98550716,4116.4,4116.3,0.002]
[1761650090063,3.98470716,4116.4,4116.3,0.002]
[1761650093997,2.42950716,4116.4,4116.3,0.4382]
[1761650099192,2.43030716,4116.4,4116.3,0.4382]
[1761650100614,0.001,4116.4,4116.3,0.4382]
[1761650100816,0.001,4116.4,4116.3,0.559]
[1761650100976,0.001,4116.4,4116.3,1.0119]
[1761650101167,0.001,4116.4,4116.3,0.5757]
[1761650101367,2.43030716,4116.4,4116.3,1.0119]
[1761650102743,0.001,4116.4,4116.3,1.0119]
[1761650103098,2.43030716,4116.4,4116.3,1.0119]
[1761650104192,0.001,4116.4,4116.3,1.0119]
[1761650104791,2.43030716,4116.4,4116.3,1.0119]
[1761650105706,2.43030716,4116.4,4116.3,0.559]
[1761650106025,2.43030716,4116.4,4116.3,0.4382]
[1761650109811,0.001,4116.4,4116.3,0.559]
[1761650110326,0.001,4116.4,4116.3,2.98836617]
[1761650110524,0.001,4116.4,4116.3,3.92715522]
[1761650111310,0.001,4116.4,4116.3,7.67495521]
[1761650112898,0.001,4116.4,4116.3,5.24558904]
[1761650113337,0.001,4116.4,4116.3,4.30679999]
[1761650114741,0.0002,4116.4,4116.3,6.73616616]
[1761650116833,0.0002,4116.4,4116.3,4.30679999]
[1761650117431,0.0002,4116.4,4116.3,6.73616616]
[1761650118011,0.0002,4116.4,4116.3,4.30679999]
[1761650119348,0.0002,4116.4,4116.3,7.6749618]
[1761650120522,0.0002,4116.4,4116.3,5.24559563]
[1761650121453,0.0002,4116.4,4116.3,4.30679999]
[1761650124055,0.0002,4116.4,4116.3,6.73616616]
[1761650125164,0.0002,4116.4,4116.3,4.30679999]
[1761650125330,0.0002,4116.4,4116.3,6.73616616]
[1761650126541,0.0002,4116.4,4116.3,4.30679999]
[1761650126764,0.0002,4116.4,4116.3,7.06826616]
[1761650133379,0.0002,4116.4,4116.3,7.47377016]
[1761650135597,0.0002,4116.4,4116.3,4.20269999]
[1761650135754,5.80378821,4116.4,4116.3,0.002]
[1761650136086,8.23309537,4116.4,4116.3,0.002]
[1761650136584,0.0002,4116.4,4116.3,0.002]
[1761650136794,0.0002,4116.4,4116.3,0.1228]
[1761650136995,0.0002,4116.4,4116.3,3.00596617]
[1761650137286,0.0002,4116.4,4116.3,3.32891279]
[1761650138695,0.0002,4116.4,4116.3,3.73441679]
[1761650138867,0.0002,4116.4,4116.3,3.75871045]
[1761650139064,0.0004,4116.7,4116.6,2.42918913]
[1761650139591,0.0004,4116.7,4116.6,3.00378913]
[1761650139817,0.0004,4116.7,4116.6,3.86307628]
[1761650142908,0.0004,4116.7,4116.6,3.88736817]
[1761650143114,0.0004,4116.7,4116.6,7.63516816]
[1761650143297,0.0004,4116.7,4116.6,7.61087627]
[1761650143502,0.0004,4116.7,4116.6,3.86307628]
[1761650143702,0.0004,4116.7,4116.6,4.26858028]
[1761650143901,0.0004,4116.7,4116.6,4.29287217]
[1761650144614,0.0004,4116.7,4116.6,4.26858028]
[1761650144820,0.0004,4116.7,4116.6,3.40927628]
[1761650144993,0.0004,4116.7,4116.6,3.86307628]
[1761650150042,0.0004,4116.7,4116.6,3.00378913]
[1761650152756,0.001,4116.8,4116.6,3.00378913]
[1761650152757,0.001,4116.8,4116.7,8.13723411]
[1761650152959,0.001,4116.8,4116.7,8.59103411]
[1761650153711,0.001,4116.8,4116.7,9.46274069]
[1761650154118,0.001,4116.8,4116.7,8.59103411]
[1761650154328,0.001,4116.8,4116.7,10.94757941]
[1761650154938,0.001,4116.8,4116.7,11.04476598]
[1761650157950,0.001,4116.8,4116.7,17.45476598]
[1761650158152,0.001,4117.2,4117.1,4.38959812]
[1761650158357,0.076,4119.3,4118.4,0.11272903]
[1761650158650,4.24838821,4119.2,4118.4,0.11272903]
[1761650159050,4.24838821,4119.2,4118.6,2.42796854]
[1761650159423,4.24838821,4118.9,4118.4,0.11272903]
[1761650159620,4.24838821,4118.6,4118.4,0.11272903]
[1761650159821,4.24838821,4118.7,4118.4,0.11272903]
[1761650160129,6.77634011,4118.7,4118.4,0.11272903]
[1761650160453,2.52801373,4118.6,4118.4,0.11272903]
[1761650160659,2.42806847,4118.5,4118.4,0.11272903]
[1761650160826,2.52806847,4118.5,4118.4,0.11272903]
[1761650161347,2.42806847,4118.5,4118.4,0.11272903]
[1761650161852,6.67645668,4118.5,4118.4,0.11272903]
[1761650162054,6.77645668,4118.5,4118.4,0.11272903]
[1761650162677,6.77645668,4118.5,4118.4,0.23352903]
[1761650163635,2.52726847,4118.5,4118.4,0.23352903]
[1761650163972,6.77565668,4118.5,4118.4,0.11272903]
[1761650164267,2.42813754,4118.4,4117.8,3.74539999]
[1761650164438,2.52813754,4118.4,4117.8,3.74539999]
[1761650164639,0.1765,4118.3,4117.8,3.74539999]
[1761650164940,0.06377097,4118.3,4117.8,6.17388029]
[1761650165870,4.24838821,4118.5,4117.8,4.60565323]
[1761650166166,6.68628259,4118.8,4118.0,2.42832042]
[1761650166350,2.4279571,4118.7,4117.9,2.42840961]
[1761650166938,2.42801664,4118.6,4117.9,2.42840961]
[1761650167460,4.24838821,4118.2,4117.3,4.19639999]
[1761650167661,4.24838821,4117.9,4117.1,3.74539999]
[1761650167972,6.67685478,4117.9,4117.2,0.79530012]
[1761650168142,6.67685478,4117.9,4117.1,2.42889155]
[1761650168342,2.42854466,4117.7,4117.0,0.2235]
[1761650168649,2.42854466,4117.7,4116.9,0.451]
[1761650169276,2.42854466,4117.7,4117.0,2.42894896]
[1761650170184,6.6770195,4117.6,4116.8,2.42906512]
[1761650170484,6.6770195,4117.6,4116.9,2.4290024]
[1761650170978,4.24838821,4117.6,4116.9,2.4290071]
[1761650171173,4.24838821,4117.6,4117.0,2.42892845]
[1761650171760,4.31208821,4117.6,4117.0,2.42892845]
[1761650171963,6.74069373,4117.6,4116.9,2.42899901]
[1761650172349,4.31208821,4117.6,4117.0,2.42893834]
[1761650172648,4.31208821,4117.6,4117.0,2.43093834]
[1761650173848,4.31208821,4117.6,4117.5,0.1208]
[1761650174550,0.0637,4117.6,4117.5,0.1208]
[1761650175281,2.49229918,4117.6,4117.5,0.1208]
[1761650176776,1.5552,4118.1,4117.5,0.1208]
[1761650176985,0.011,4118.8,4117.3,2.87975785]
[1761650176986,4.31208821,4118.5,4117.3,2.87975785]
[1761650177172,2.42826193,4118.2,4117.9,0.1208]
[1761650177709,2.49196193,4118.2,4117.9,0.1208]
[1761650178212,2.42830688,4118.1,4117.9,0.1208]
[1761650178715,2.42836328,4118.0,4117.9,0.1208]
[1761650179015,2.49202058,4118.1,4117.9,0.1208]
[1761650181155,2.42825626,4118.2,4117.9,0.1208]
[1761650181643,0.0637,4118.1,4117.9,0.1208]
[1761650181816,2.42825626,4118.2,4117.9,0.1208]
[1761650182018,0.0637,4118.2,4117.9,0.1208]
[1761650182618,2.42811933,4118.5,4117.9,0.1208]
[1761650183131,2.42814892,4118.4,4117.9,0.1208]
[1761650183835,2.42822715,4118.3,4117.9,0.1208]
[1761650184039,2.42814363,4118.4,4117.9,0.1208]
[1761650185540,2.42808958,4118.5,4117.9,0.1208]
[1761650186141,2.42813385,4118.4,4117.9,0.1208]
[1761650186734,2.42808211,4118.5,4117.9,0.1208]
[1761650187218,2.42813713,4118.4,4117.9,0.1208]
[1761650187738,2.42807815,4118.5,4117.9,3.86619999]
[1761650187939,2.42802727,4118.6,4118.0,0.02428363]
[1761650188238,2.42802727,4118.6,4117.9,3.74539999]
[1761650188239,2.42722727,4118.6,4118.3,0.1208]
[1761650188542,2.42812742,4118.4,4118.3,0.1208]
[1761650189324,1.5552,4118.7,4118.3,0.1208]
[1761650189544,3.98317056,4118.7,4118.3,0.1208]
[1761650189746,2.428013,4118.6,4118.3,0.1208]
[1761650189924,3.98319801,4118.7,4118.3,0.1208]
[1761650190129,2.42802141,4118.6,4118.3,0.1208]
[1761650191021,0.001,4118.4,4118.3,0.1208]
[1761650191332,0.001,4118.4,4118.3,3.10274162]
[1761650191546,0.001,4118.4,4118.3,3.67454162]
[1761650192617,0.001,4118.4,4118.3,7.33374162]
[1761650192859,0.001,4118.4,4118.3,7.45454162]
[1761650193078,0.001,4118.4,4118.3,3.67454162]
[1761650197527,0.001,4118.4,4118.3,3.66034162]
[1761650198346,0.001,4118.4,4118.3,0.79535524]
[1761650198545,0.001,4118.4,4118.3,0.1208]
[1761650203451,0.06926571,4118.8,4118.3,2.54896471]
[1761650203651,0.06926571,4118.8,4118.7,0.1208]
[1761650203971,0.00556571,4118.8,4118.7,0.1208]
[1761650204178,2.43345732,4118.8,4118.7,0.1208]
[1761650205153,2.49715732,4118.8,4118.7,0.1208]
[1761650207194,2.42823329,4118.3,4117.8,0.002]
[1761650207343,2.42823329,4118.3,4118.2,0.1208]
[1761650207880,2.42814408,4118.4,4118.2,0.1208]
[1761650208378,0.00556571,4118.8,4118.2,0.1208]
[1761650208379,2.42801002,4118.6,4118.2,0.1208]
[1761650208669,2.42803328,4118.6,4118.2,0.1208]
[1761650209095,2.42796982,4118.7,4118.2,0.1208]
[1761650209245,0.001,4118.6,4118.3,0.4368]
[1761650209446,0.001,4118.6,4118.4,0.02428127]
[1761650209646,0.001,4118.6,4118.5,0.1208]
[1761650209874,0.001,4118.6,4118.5,0.5576]
[1761650210088,0.001,4118.6,4118.5,0.1208]
[1761650210296,0.001,4118.6,4118.5,2.98566847]
[1761650210590,0.001,4118.6,4118.5,0.42179503]
[1761650212504,0.0002,4118.6,4118.5,0.42179503]
[1761650213166,0.0002,4118.6,4118.5,0.1208]
[1761650220913,2.49190951,4118.6,4118.5,0.1208]
[1761650221597,2.42820951,4118.6,4118.5,0.1208]
[1761650221799,2.49190951,4118.6,4118.5,0.1208]
[1761650222179,2.42820951,4118.6,4118.5,0.1208]
[1761650223012,0.0002,4118.6,4118.5,0.1208]
[1761650223477,0.0002,4118.6,4118.5,2.98566847]
[1761650223680,0.0002,4118.6,4118.5,3.90505337]
[1761650227800,0.0002,4118.6,4118.5,1.0401849]
[1761650227974,0.0002,4118.6,4118.5,0.1208]
[1761650228513,0.0002,4118.6,4118.5,3.9008]
[1761650228812,0.0002,4118.6,4118.5,3.9028]
[1761650229108,2.42820951,4118.6,4118.5,3.9028]
[1761650229428,2.49190951,4118.6,4118.5,3.9028]
[1761650229982,2.42820951,4118.6,4118.5,3.9028]
[1761650230510,2.49190951,4118.6,4118.5,3.9028]
[1761650230707,2.42820951,4118.6,4118.5,3.9028]
[1761650232485,0.0002,4118.6,4118.5,3.9028]
[1761650233116,2.42820951,4118.6,4118.5,3.9028]
[1761650234220,0.0002,4118.6,4118.5,3.9028]
[1761650234408,0.0002,4118.6,4118.5,0.1228]
[1761650235014,2.42820951,4118.6,4118.5,0.1228]
[1761650235213,0.0002,4118.6,4118.5,0.1228]
[1761650237015,2.43287905,4118.8,4118.5,0.1228]
[1761650237614,2.43287905,4118.8,4118.5,0.5744]
[1761650238825,2.43287905,4118.8,4118.5,0.1228]
[1761650239512,2.42796783,4118.7,4118.5,0.1228]
[1761650239814,2.42800951,4118.6,4118.5,0.1228]
[1761650240014,2.42796646,4118.7,4118.5,0.1228]
[1761650240596,2.42800951,4118.6,4118.5,0.1228]
[1761650241226,2.42797146,4118.7,4118.5,0.1228]
[1761650242327,2.43287165,4118.8,4118.5,0.1228]
[1761650242724,2.42796637,4118.7,4118.5,0.1228]
[1761650243926,2.42800951,4118.6,4118.5,0.002]
[1761650244146,2.49170951,4118.6,4118.5,0.002]
[1761650245246,2.58890056,4118.6,4118.5,0.002]
[1761650246132,4.14410056,4118.6,4118.5,0.002]
[1761650247415,4.08040056,4118.6,4118.5,0.002]
[1761650247942,4.14410056,4118.6,4118.5,0.002]
[1761650250645,4.08040056,4118.6,4118.5,0.002]
[1761650251443,3.98320951,4118.6,4118.5,0.002]
[1761650253013,4.04690951,4118.6,4118.5,0.002]
[1761650253842,8.29388449,4118.6,4118.5,0.002]
[1761650255938,8.23018449,4118.6,4118.5,0.002]
[1761650257250,8.41468449,4118.6,4118.5,0.002]
[1761650258624,8.54344269,4118.6,4118.5,0.002]
[1761650259451,8.47974269,4118.6,4118.5,0.002]
[1761650260855,8.54344269,4118.6,4118.5,0.002]
[1761650261435,8.54264269,4118.6,4118.5,0.002]
[1761650261634,8.47894269,4118.6,4118.5,0.002]
[1761650264154,5.93093318,4118.6,4118.5,0.002]
[1761650264332,8.23018449,4118.6,4118.5,0.4503]
[1761650264536,6.67498449,4118.6,4118.5,0.4503]
[1761650264970,0.00496571,4118.8,4118.5,0.002]
[1761650265169,0.00496571,4118.8,4118.5,0.4503]
[1761650266058,4.97680873,4119.3,4118.9,0.12177516]
[1761650266059,0.001,4119.3,4118.9,0.12177516]
[1761650266246,0.001,4119.3,4119.2,0.2184]
[1761650266629,0.001,4119.3,4119.2,3.09435585]
[1761650266832,0.01,4119.8,4119.2,0.6667]
[1761650267131,0.01,4119.8,4119.7,2.42736121]
[1761650267540,0.01,4119.8,4119.7,2.87566121]
[1761650267730,0.01,4119.8,4119.7,3.40598111]
[1761650268268,0.01,4119.8,4119.7,0.9786199]
[1761650269260,0.01,4119.8,4119.7,3.40598111]
[1761650270756,0.01,4119.8,4119.7,0.9786199]
[1761650271608,0.01,4119.8,4119.7,3.40598111]
[1761650272256,2.31506059,4120.6,4119.8,2.42727858]
[1761650272459,2.31506059,4120.6,4119.9,4.36333161]
[1761650272661,2.31506059,4120.6,4119.9,4.81163161]
[1761650272868,2.31506059,4120.6,4120.0,0.4483]
[1761650273091,2.42689236,4120.5,4120.0,0.4483]
[1761650273297,2.42689236,4120.5,4120.1,0.94229102]
[1761650273484,6.67375059,4120.7,4120.1,0.94229102]
[1761650273683,6.67375059,4120.7,4120.2,0.4483]
[1761650273885,4.24697498,4120.7,4120.2,0.4483]
[1761650274063,2.42691896,4120.5,4120.2,0.4483]
[1761650275166,2.42691896,4120.5,4120.2,0.5691]
[1761650275401,2.42700774,4120.3,4120.2,0.1208]
[1761650275587,2.42747906,4119.5,4119.4,3.78]
[1761650275898,1.5552,4120.3,4119.4,3.78]
[1761650275899,2.42742491,4119.6,4119.4,3.78]
[1761650276085,4.24697498,4120.1,4119.4,3.78]
[1761650276399,2.42729248,4119.9,4119.4,3.78]
[1761650276578,2.42736413,4119.7,4119.5,0.4483]
[1761650277173,4.24697498,4120.1,4119.5,0.4483]
[1761650277174,2.42742013,4119.6,4119.5,0.4483]
[1761650278121,2.42747906,4119.5,4119.4,4.17984]
[1761650280915,4.24697498,4119.8,4119.4,3.78]
[1761650281121,2.42743097,4119.6,4119.4,3.78]
[1761650281321,2.42743097,4119.6,4119.5,3.78]
[1761650281522,2.42743097,4119.6,4119.5,4.2283]
[1761650281912,4.24697498,4119.9,4119.5,4.2283]
[1761650282220,2.42731582,4119.8,4119.5,4.2283]
[1761650282426,2.42737573,4119.7,4119.5,4.2283]
[1761650283034,2.42738009,4119.7,4119.5,4.2283]
[1761650283216,6.67423207,4119.9,4119.5,4.2283]
[1761650283217,2.42742013,4119.6,4119.5,4.2283]
[1761650283532,2.42735948,4119.8,4119.5,3.782]
[1761650283740,6.67421837,4119.9,4119.6,0.4483]
[1761650284117,4.24697498,4119.9,4119.6,0.4483]
[1761650284325,2.42730229,4119.8,4119.6,0.4483]
[1761650284518,4.24697498,4119.9,4119.6,0.4483]
[1761650284721,2.42731322,4119.8,4119.6,0.4483]
[1761650285132,4.24697498,4119.9,4119.6,0.4483]
[1761650285735,6.67423338,4119.9,4119.6,0.4483]
[1761650285912,2.42730229,4119.8,4119.6,0.4483]
[1761650286252,2.42650229,4119.8,4119.6,0.4483]
[1761650286600,4.24697498,4119.9,4119.6,0.4483]
[1761650286800,0.72863903,4120.5,4119.6,0.88341]
[1761650286801,6.67387575,4120.5,4119.6,0.88341]
[1761650287019,6.67387575,4120.5,4119.8,0.1208]
[1761650287020,2.42704967,4120.3,4119.8,0.1208]
[1761650287234,2.42699166,4120.4,4119.8,0.1208]
[1761650287534,2.42705481,4120.3,4119.9,0.4488]
[1761650288401,4.24697498,4120.5,4120.0,3.78]
[1761650288725,0.001,4120.6,4120.2,0.1208]
[1761650289336,0.001,4120.6,4120.3,0.4488]
[1761650289713,0.001,4120.6,4120.5,0.1208]
[1761650290157,0.001,4120.6,4120.5,0.5696]